[Event "Late-Titled-Tuesday-Blitz-March-19-2024"]
[Site "Chess.com"]
[Date "2024.03.19"]
[Round "1"]
[White "ozates"]
[Black "AndreyNeves"]
[Result "0-1"]
[WhiteElo "2574"]
[BlackElo "2120"]
[TimeControl "180+1"]
[EndTime "14:07:51 PDT"]
[Termination "AndreyNeves won by checkmate"]

1. e4 {[%clk 0:02:55.4]} 1... c6 {[%clk 0:02:59.7]} 2. d4 {[%clk 0:02:54.3]}
2... d5 {[%clk 0:02:59.6]} 3. e5 {[%clk 0:02:54.1]} 3... Bf5 {[%clk 0:02:58.2]}
4. c3 {[%clk 0:02:53.5]} 4... e6 {[%clk 0:02:55.5]} 5. Nd2 {[%clk 0:02:48.2]}
5... Ne7 {[%clk 0:02:53.2]} 6. Ngf3 {[%clk 0:02:42]} 6... Nd7 {[%clk 0:02:52.2]}
7. Nh4 {[%clk 0:02:41.4]} 7... c5 {[%clk 0:02:48.4]} 8. Nxf5 {[%clk 0:02:41]}
8... Nxf5 {[%clk 0:02:47.7]} 9. Nf3 {[%clk 0:02:41.7]} 9... h5 {[%clk
0:02:43.8]} 10. Bd3 {[%clk 0:02:36.8]} 10... g6 {[%clk 0:02:40.9]} 11. Bg5
{[%clk 0:02:35.1]} 11... Be7 {[%clk 0:02:39.5]} 12. h4 {[%clk 0:02:33.5]} 12...
c4 {[%clk 0:02:37.3]} 13. Bc2 {[%clk 0:02:32]} 13... b5 {[%clk 0:02:37]} 14. Qd2
{[%clk 0:02:17.5]} 14... a5 {[%clk 0:02:35.4]} 15. Bxe7 {[%clk 0:02:12.8]} 15...
Qxe7 {[%clk 0:02:33.1]} 16. Ng5 {[%clk 0:02:13.7]} 16... Kf8 {[%clk 0:02:27.3]}
17. Qe2 {[%clk 0:02:02]} 17... Kg7 {[%clk 0:02:25.9]} 18. g4 {[%clk 0:02:00.9]}
18... hxg4 {[%clk 0:02:24.7]} 19. Qxg4 {[%clk 0:02:01.3]} 19... Rh5 {[%clk
0:02:20.3]} 20. Kd2 {[%clk 0:01:55.6]} 20... Rah8 {[%clk 0:02:17.9]} 21. Bxf5
{[%clk 0:01:47.8]} 21... exf5 {[%clk 0:02:17.9]} 22. Qg3 {[%clk 0:01:47.8]}
22... Nf8 {[%clk 0:02:02.1]} 23. Rag1 {[%clk 0:01:29.5]} 23... Ne6 {[%clk
0:02:00]} 24. Nf3 {[%clk 0:01:23.1]} 24... b4 {[%clk 0:01:55.1]} 25. Qg2 {[%clk
0:01:14.4]} 25... bxc3+ {[%clk 0:01:53.3]} 26. bxc3 {[%clk 0:01:15.3]} 26... Qa3
{[%clk 0:01:51.2]} 27. Rc1 {[%clk 0:01:14.7]} 27... Rb8 {[%clk 0:01:40.9]} 28.
Rc2 {[%clk 0:01:13]} 28... Rb2 {[%clk 0:01:38.4]} 29. Ne1 {[%clk 0:01:12]} 29...
Qxa2 {[%clk 0:01:26]} 30. Qxd5 {[%clk 0:01:09.7]} 30... Qb1 {[%clk 0:01:12.9]}
31. Rxb2 {[%clk 0:00:54.2]} 31... Qxb2+ {[%clk 0:01:10.7]} 32. Nc2 {[%clk
0:00:55.1]} 32... Nf4 {[%clk 0:01:06.9]} 33. Qxc4 {[%clk 0:00:54.4]} 33... Ng2
{[%clk 0:00:58.1]} 34. d5 {[%clk 0:00:52]} 34... Qb6 {[%clk 0:00:44.1]} 35. Ke2
{[%clk 0:00:44.5]} 35... f4 {[%clk 0:00:41.3]} 36. Qe4 {[%clk 0:00:39.7]} 36...
Nxh4 {[%clk 0:00:39.7]} 37. e6 {[%clk 0:00:36.6]} 37... fxe6 {[%clk 0:00:37.1]}
38. dxe6 {[%clk 0:00:37]} 38... Qd6 {[%clk 0:00:35.2]} 39. Rd1 {[%clk
0:00:30.2]} 39... Qa6+ {[%clk 0:00:31.8]} 40. c4 {[%clk 0:00:27]} 40... f3+
{[%clk 0:00:29.7]} 41. Kf1 {[%clk 0:00:17.7]} 41... Nf5 {[%clk 0:00:26.3]} 42.
Rd7+ {[%clk 0:00:18.2]} 42... Kg8 {[%clk 0:00:19.9]} 43. Ke1 {[%clk 0:00:13.1]}
43... Rh1+ {[%clk 0:00:18.4]} 44. Kd2 {[%clk 0:00:13.2]} 44... a4 {[%clk
0:00:13.2]} 45. e7 {[%clk 0:00:12.8]} 45... Qa5+ {[%clk 0:00:13]} 46. Nb4 {[%clk
0:00:07.3]} 46... Qxb4+ {[%clk 0:00:12.4]} 47. Kc2 {[%clk 0:00:07.7]} 47... Qb3+
{[%clk 0:00:11.6]} 48. Kd2 {[%clk 0:00:05.6]} 48... Rd1# {[%clk 0:00:11.1]} 0-1

[Event "Late-Titled-Tuesday-Blitz-March-19-2024"]
[Site "Chess.com"]
[Date "2024.03.19"]
[Round "1"]
[White "AungTZ"]
[Black "albi1999"]
[Result "0-1"]
[WhiteElo "2041"]
[BlackElo "2583"]
[TimeControl "180+1"]
[EndTime "14:07:51 PDT"]
[Termination "albi1999 won by checkmate"]

1. e4 {[%clk 0:03:00.3]} 1... c5 {[%clk 0:02:48.9]} 2. Nf3 {[%clk 0:03:00.1]}
2... a6 {[%clk 0:02:47.5]} 3. c3 {[%clk 0:02:58.9]} 3... d5 {[%clk 0:02:46.7]}
4. e5 {[%clk 0:02:58.3]} 4... Nc6 {[%clk 0:02:46.4]} 5. d4 {[%clk 0:02:57.6]}
5... cxd4 {[%clk 0:02:45.8]} 6. cxd4 {[%clk 0:02:57.7]} 6... Bg4 {[%clk
0:02:46.4]} 7. Be2 {[%clk 0:02:56.8]} 7... e6 {[%clk 0:02:46.8]} 8. O-O {[%clk
0:02:55.1]} 8... Nge7 {[%clk 0:02:46.5]} 9. Nbd2 {[%clk 0:02:43.9]} 9... Rc8
{[%clk 0:02:44.8]} 10. Nb3 {[%clk 0:02:40.8]} 10... Nf5 {[%clk 0:02:36.1]} 11.
h3 {[%clk 0:02:39.4]} 11... Bxf3 {[%clk 0:02:35.7]} 12. Bxf3 {[%clk 0:02:39.3]}
12... Be7 {[%clk 0:02:29.5]} 13. Bg4 {[%clk 0:02:21.4]} 13... O-O {[%clk
0:02:27.1]} 14. Bxf5 {[%clk 0:02:20.6]} 14... exf5 {[%clk 0:02:28]} 15. Bd2
{[%clk 0:02:14.8]} 15... Qd7 {[%clk 0:02:27.2]} 16. Rc1 {[%clk 0:02:13]} 16...
g6 {[%clk 0:02:24.5]} 17. Re1 {[%clk 0:02:09.4]} 17... Rc7 {[%clk 0:02:23.6]}
18. Qf3 {[%clk 0:01:49.7]} 18... Rfc8 {[%clk 0:02:21.9]} 19. g4 {[%clk
0:01:37.4]} 19... fxg4 {[%clk 0:02:20.2]} 20. hxg4 {[%clk 0:01:37.4]} 20... Nd8
{[%clk 0:02:11.7]} 21. Rxc7 {[%clk 0:01:20.1]} 21... Rxc7 {[%clk 0:02:12.6]} 22.
Ba5 {[%clk 0:01:14.1]} 22... Rc2 {[%clk 0:01:57.5]} 23. Bxd8 {[%clk 0:01:13.6]}
23... Qxd8 {[%clk 0:01:52]} 24. Re2 {[%clk 0:01:10.4]} 24... Rxe2 {[%clk
0:01:49.8]} 25. Qxe2 {[%clk 0:01:09.9]} 25... Qc8 {[%clk 0:01:49.2]} 26. Kg2
{[%clk 0:01:09.4]} 26... b5 {[%clk 0:01:32.2]} 27. Kg3 {[%clk 0:01:00.8]} 27...
Qd8 {[%clk 0:01:09.5]} 28. Qc2 {[%clk 0:00:50.9]} 28... Bh4+ {[%clk 0:01:07.4]}
29. Kh3 {[%clk 0:00:44.3]} 29... Bg5 {[%clk 0:00:59.9]} 30. Qc6 {[%clk
0:00:37.3]} 30... Bf4 {[%clk 0:00:58.1]} 31. Nc5 {[%clk 0:00:26.8]} 31... h5
{[%clk 0:00:17.6]} 32. f3 {[%clk 0:00:21.7]} 32... hxg4+ {[%clk 0:00:17.1]} 33.
fxg4 {[%clk 0:00:21.7]} 33... Qg5 {[%clk 0:00:17]} 34. Qc8+ {[%clk 0:00:21.2]}
34... Kg7 {[%clk 0:00:16.4]} 35. Nd7 {[%clk 0:00:17.4]} 35... Qh6+ {[%clk
0:00:16.7]} 36. Kg2 {[%clk 0:00:17.1]} 36... Qh2+ {[%clk 0:00:17.6]} 37. Kf3
{[%clk 0:00:17.2]} 37... Qg3+ {[%clk 0:00:17.8]} 38. Ke2 {[%clk 0:00:16.8]}
38... Qe3+ {[%clk 0:00:18.6]} 39. Kf1 {[%clk 0:00:16.3]} 39... Qf3+ {[%clk
0:00:18.8]} 40. Ke1 {[%clk 0:00:13.2]} 40... Bg3+ {[%clk 0:00:18.2]} 41. Kd2
{[%clk 0:00:12.7]} 41... Qf2+ {[%clk 0:00:16.6]} 42. Kd3 {[%clk 0:00:12]} 42...
Bh4 {[%clk 0:00:13.5]} 43. Qf8+ {[%clk 0:00:08.4]} 43... Kh7 {[%clk 0:00:13.6]}
44. e6 {[%clk 0:00:06.4]} 44... Qf3+ {[%clk 0:00:12.4]} 45. Kc2 {[%clk
0:00:05.9]} 45... Qe2+ {[%clk 0:00:12.3]} 46. Kb3 {[%clk 0:00:02.3]} 46... Qc4+
{[%clk 0:00:11.5]} 47. Ka3 {[%clk 0:00:02.3]} 47... Qa4# {[%clk 0:00:12.4]} 0-1

[Event "Late-Titled-Tuesday-Blitz-March-19-2024"]
[Site "Chess.com"]
[Date "2024.03.19"]
[Round "1"]
[White "Igrok3069"]
[Black "HajiyevKanan"]
[Result "1-0"]
[WhiteElo "2856"]
[BlackElo "2500"]
[TimeControl "180+1"]
[EndTime "14:08:00 PDT"]
[Termination "Igrok3069 won by resignation"]

1. d4 {[%clk 0:02:59]} 1... d5 {[%clk 0:03:00]} 2. c4 {[%clk 0:02:58.8]} 2... c6
{[%clk 0:03:00.7]} 3. Nc3 {[%clk 0:02:58.8]} 3... Nf6 {[%clk 0:03:01.1]} 4. e3
{[%clk 0:02:58.7]} 4... a6 {[%clk 0:02:59.7]} 5. b3 {[%clk 0:02:57.1]} 5... Bf5
{[%clk 0:02:59.4]} 6. Bd3 {[%clk 0:02:54.4]} 6... Bxd3 {[%clk 0:02:59.2]} 7.
Qxd3 {[%clk 0:02:55.3]} 7... e6 {[%clk 0:02:58.8]} 8. Bb2 {[%clk 0:02:55.2]}
8... Bb4 {[%clk 0:02:58.7]} 9. Ne2 {[%clk 0:02:54.6]} 9... O-O {[%clk 0:02:59]}
10. O-O {[%clk 0:02:53.3]} 10... Nbd7 {[%clk 0:02:58.8]} 11. Rad1 {[%clk
0:02:48.7]} 11... Qe7 {[%clk 0:02:58.3]} 12. Qc2 {[%clk 0:02:39.4]} 12... Ba3
{[%clk 0:02:57.3]} 13. Ba1 {[%clk 0:02:39.1]} 13... a5 {[%clk 0:02:56.9]} 14.
Nf4 {[%clk 0:02:36.6]} 14... Bd6 {[%clk 0:02:55.5]} 15. Nd3 {[%clk 0:02:36.7]}
15... Rfc8 {[%clk 0:02:42.8]} 16. Rfe1 {[%clk 0:02:33.1]} 16... b5 {[%clk
0:02:40.3]} 17. c5 {[%clk 0:02:18.8]} 17... Bc7 {[%clk 0:02:38.7]} 18. f4 {[%clk
0:02:17.6]} 18... b4 {[%clk 0:02:15.7]} 19. Nb1 {[%clk 0:02:06.8]} 19... Ne4
{[%clk 0:02:15.8]} 20. Nd2 {[%clk 0:02:02.4]} 20... Nxd2 {[%clk 0:02:12.1]} 21.
Qxd2 {[%clk 0:02:00.3]} 21... Nf6 {[%clk 0:02:13]} 22. Nf2 {[%clk 0:01:58]}
22... a4 {[%clk 0:02:07.5]} 23. Bb2 {[%clk 0:01:57.8]} 23... axb3 {[%clk
0:02:06.3]} 24. axb3 {[%clk 0:01:57]} 24... Ra2 {[%clk 0:02:04.7]} 25. Ra1
{[%clk 0:01:54.5]} 25... Rca8 {[%clk 0:02:04.1]} 26. Rxa2 {[%clk 0:01:54.4]}
26... Rxa2 {[%clk 0:02:05]} 27. Ra1 {[%clk 0:01:54]} 27... Rxa1+ {[%clk
0:01:56.3]} 28. Bxa1 {[%clk 0:01:54.9]} 28... Ba5 {[%clk 0:01:55.6]} 29. Bb2
{[%clk 0:01:54.1]} 29... Qa7 {[%clk 0:01:53.4]} 30. g4 {[%clk 0:01:51.1]} 30...
Qa6 {[%clk 0:01:48.3]} 31. Qc2 {[%clk 0:01:30.2]} 31... Bc7 {[%clk 0:01:26.8]}
32. Bc1 {[%clk 0:01:21.1]} 32... Qa1 {[%clk 0:01:24.7]} 33. Kg2 {[%clk 0:01:16]}
33... h6 {[%clk 0:01:02.8]} 34. Kf3 {[%clk 0:01:12.4]} 34... Ne8 {[%clk
0:00:43.7]} 35. Bd2 {[%clk 0:01:03.6]} 35... Ba5 {[%clk 0:00:43]} 36. Qd1 {[%clk
0:00:54.2]} 36... Qb2 {[%clk 0:00:36.8]} 37. Nd3 {[%clk 0:00:52.8]} 37... Qa2
{[%clk 0:00:32.6]} 38. Ne5 {[%clk 0:00:46.2]} 38... Nf6 {[%clk 0:00:28]} 39. Qe2
{[%clk 0:00:30.6]} 39... Ne4 {[%clk 0:00:27.8]} 40. Bxb4 {[%clk 0:00:30.8]}
40... Qxe2+ {[%clk 0:00:21.6]} 41. Kxe2 {[%clk 0:00:31]} 41... Bxb4 {[%clk
0:00:22.3]} 42. Nxc6 {[%clk 0:00:31.6]} 42... Bxc5 {[%clk 0:00:22.8]} 43. dxc5
{[%clk 0:00:31.4]} 43... Nxc5 {[%clk 0:00:23.2]} 44. b4 {[%clk 0:00:31.8]} 44...
Nd7 {[%clk 0:00:20.5]} 45. Kd3 {[%clk 0:00:31.5]} 45... Kf8 {[%clk 0:00:17.6]}
46. Kd4 {[%clk 0:00:30.5]} 46... Ke8 {[%clk 0:00:18.1]} 47. h4 {[%clk
0:00:30.2]} 47... f6 {[%clk 0:00:16.8]} 48. h5 {[%clk 0:00:28.9]} 48... Nb6
{[%clk 0:00:10.2]} 49. Kc5 {[%clk 0:00:28.9]} 49... Nc8 {[%clk 0:00:10.1]} 50.
b5 {[%clk 0:00:28.6]} 50... Kd7 {[%clk 0:00:10.8]} 51. b6 {[%clk 0:00:27.2]}
51... Nxb6 {[%clk 0:00:05.8]} 52. Kxb6 {[%clk 0:00:26.5]} 52... Kd6 {[%clk
0:00:06.7]} 53. Kb5 {[%clk 0:00:24.1]} 53... e5 {[%clk 0:00:07.3]} 54. f5 {[%clk
0:00:24.7]} 54... d4 {[%clk 0:00:05.1]} 55. exd4 {[%clk 0:00:23.6]} 55... exd4
{[%clk 0:00:06]} 56. Nxd4 {[%clk 0:00:22]} 56... Ke5 {[%clk 0:00:06.2]} 57. Ne6
{[%clk 0:00:22.1]} 57... Ke4 {[%clk 0:00:06.2]} 58. Nxg7 {[%clk 0:00:22.1]}
58... Kf4 {[%clk 0:00:07.1]} 59. Kc6 {[%clk 0:00:22]} 59... Kxg4 {[%clk
0:00:07.5]} 60. Kd6 {[%clk 0:00:22.1]} 1-0

[Event "Late-Titled-Tuesday-Blitz-March-19-2024"]
[Site "Chess.com"]
[Date "2024.03.19"]
[Round "1"]
[White "inagreV"]
[Black "RodokininEV"]
[Result "1/2-1/2"]
[WhiteElo "2378"]
[BlackElo "2678"]
[TimeControl "180+1"]
[EndTime "14:08:01 PDT"]
[Termination "Game drawn - insufficient material"]

1. e4 {[%clk 0:03:00.9]} 1... c5 {[%clk 0:02:58.3]} 2. Nf3 {[%clk 0:03:00.8]}
2... d6 {[%clk 0:02:58.8]} 3. Bb5+ {[%clk 0:03:00]} 3... Nd7 {[%clk 0:02:58]} 4.
d4 {[%clk 0:02:59.3]} 4... cxd4 {[%clk 0:02:58.1]} 5. Qxd4 {[%clk 0:03:00.2]}
5... a6 {[%clk 0:02:58.2]} 6. Bxd7+ {[%clk 0:02:57.7]} 6... Bxd7 {[%clk
0:02:59.1]} 7. Nc3 {[%clk 0:02:57.5]} 7... e6 {[%clk 0:02:55.4]} 8. Bg5 {[%clk
0:02:55.2]} 8... Qc7 {[%clk 0:02:54.1]} 9. O-O-O {[%clk 0:02:52.3]} 9... Qc5
{[%clk 0:02:41.1]} 10. Qxc5 {[%clk 0:02:49.2]} 10... dxc5 {[%clk 0:02:42]} 11.
Ne5 {[%clk 0:02:42.1]} 11... Bc6 {[%clk 0:02:30.3]} 12. Nxc6 {[%clk 0:02:41.1]}
12... bxc6 {[%clk 0:02:31.2]} 13. Na4 {[%clk 0:02:35.7]} 13... Nf6 {[%clk
0:02:29.2]} 14. f3 {[%clk 0:02:30.6]} 14... Be7 {[%clk 0:02:25.5]} 15. Rd3
{[%clk 0:02:20.8]} 15... Rb8 {[%clk 0:02:19.8]} 16. Be3 {[%clk 0:02:15.2]} 16...
Nd7 {[%clk 0:02:16.5]} 17. Rhd1 {[%clk 0:02:12.9]} 17... Ne5 {[%clk 0:01:40.9]}
18. Rc3 {[%clk 0:02:00.9]} 18... c4 {[%clk 0:01:41.2]} 19. f4 {[%clk 0:01:51.5]}
19... Ng4 {[%clk 0:01:41.4]} 20. Bg1 {[%clk 0:01:51.4]} 20... e5 {[%clk
0:01:41.9]} 21. h3 {[%clk 0:01:44.4]} 21... Nf6 {[%clk 0:01:33.6]} 22. Rxc4
{[%clk 0:01:40.4]} 22... exf4 {[%clk 0:00:57.9]} 23. Rxc6 {[%clk 0:01:29.3]}
23... Nxe4 {[%clk 0:00:55.7]} 24. Re1 {[%clk 0:01:25.5]} 24... f5 {[%clk
0:00:55]} 25. Nc5 {[%clk 0:01:19]} 25... Bxc5 {[%clk 0:00:52.8]} 26. Bxc5 {[%clk
0:01:19.9]} 26... Kd7 {[%clk 0:00:43.7]} 27. Rd6+ {[%clk 0:00:50.7]} 27... Nxd6
{[%clk 0:00:42.9]} 28. Rd1 {[%clk 0:00:51.1]} 28... Kc6 {[%clk 0:00:43.2]} 29.
Bxd6 {[%clk 0:00:50]} 29... Rbd8 {[%clk 0:00:43.5]} 30. Bxf4 {[%clk 0:00:49.7]}
30... Rxd1+ {[%clk 0:00:44.4]} 31. Kxd1 {[%clk 0:00:50.6]} 31... Kd5 {[%clk
0:00:44.9]} 32. b3 {[%clk 0:00:48.8]} 32... Ke4 {[%clk 0:00:45.2]} 33. g3 {[%clk
0:00:48.7]} 33... h6 {[%clk 0:00:43.7]} 34. h4 {[%clk 0:00:48.8]} 34... Rg8
{[%clk 0:00:44]} 35. h5 {[%clk 0:00:47.2]} 35... Rd8+ {[%clk 0:00:42.8]} 36. Ke2
{[%clk 0:00:47.2]} 36... Rc8 {[%clk 0:00:42]} 37. c4 {[%clk 0:00:47]} 37... Kd4
{[%clk 0:00:41.4]} 38. Kd2 {[%clk 0:00:44.9]} 38... Re8 {[%clk 0:00:40.7]} 39.
Bd6 {[%clk 0:00:38.3]} 39... Re4 {[%clk 0:00:37.1]} 40. Bf4 {[%clk 0:00:33.4]}
40... a5 {[%clk 0:00:34.2]} 41. Bc7 {[%clk 0:00:33]} 41... Rg4 {[%clk
0:00:33.8]} 42. a3 {[%clk 0:00:30.6]} 42... a4 {[%clk 0:00:31.1]} 43. Bb6+
{[%clk 0:00:30]} 43... Ke5 {[%clk 0:00:29.5]} 44. Bc7+ {[%clk 0:00:27.7]} 44...
Kd4 {[%clk 0:00:28.5]} 45. Bb6+ {[%clk 0:00:27]} 45... Ke5 {[%clk 0:00:29]} 46.
Bc7+ {[%clk 0:00:27.1]} 46... Ke6 {[%clk 0:00:29.6]} 47. c5 {[%clk 0:00:22.9]}
47... axb3 {[%clk 0:00:29.1]} 48. Kc3 {[%clk 0:00:23.6]} 48... Kd5 {[%clk
0:00:28.9]} 49. Bd6 {[%clk 0:00:23.4]} 49... Rg5 {[%clk 0:00:27.5]} 50. Kxb3
{[%clk 0:00:21.6]} 50... Rxh5 {[%clk 0:00:27.8]} 51. a4 {[%clk 0:00:22.3]} 51...
Rh1 {[%clk 0:00:27.7]} 52. Kb4 {[%clk 0:00:22.1]} 52... Kc6 {[%clk 0:00:28]} 53.
Kc4 {[%clk 0:00:21.2]} 53... Ra1 {[%clk 0:00:27.8]} 54. Kd4 {[%clk 0:00:20.3]}
54... Rxa4+ {[%clk 0:00:27]} 55. Ke5 {[%clk 0:00:21.2]} 55... Re4+ {[%clk
0:00:26]} 56. Kxf5 {[%clk 0:00:21.4]} 56... Re3 {[%clk 0:00:23.4]} 57. Kg6
{[%clk 0:00:20.7]} 57... Re6+ {[%clk 0:00:18.7]} 58. Kxg7 {[%clk 0:00:20.8]}
58... h5 {[%clk 0:00:18.9]} 59. Kf7 {[%clk 0:00:19.2]} 59... Re4 {[%clk
0:00:17]} 60. Kg6 {[%clk 0:00:19]} 60... h4 {[%clk 0:00:13.1]} 61. gxh4 {[%clk
0:00:17.7]} 61... Rxh4 {[%clk 0:00:14]} 62. Kf5 {[%clk 0:00:18]} 62... Rh5+
{[%clk 0:00:13.9]} 63. Ke6 {[%clk 0:00:18.4]} 63... Rxc5 {[%clk 0:00:13.2]} 64.
Bxc5 {[%clk 0:00:19.3]} 1/2-1/2

[Event "Late-Titled-Tuesday-Blitz-March-19-2024"]
[Site "Chess.com"]
[Date "2024.03.19"]
[Round "1"]
[White "Seochesspie"]
[Black "Cambek64"]
[Result "1-0"]
[WhiteElo "2865"]
[BlackElo "2503"]
[TimeControl "180+1"]
[EndTime "14:08:02 PDT"]
[Termination "Seochesspie won by resignation"]

1. d4 {[%clk 0:03:00.9]} 1... b5 {[%clk 0:02:03.9]} 2. e4 {[%clk 0:02:59.9]}
2... Bb7 {[%clk 0:02:00.2]} 3. Nd2 {[%clk 0:02:53.7]} 3... a6 {[%clk 0:02:00]}
4. Ngf3 {[%clk 0:02:53.3]} 4... e6 {[%clk 0:02:00.2]} 5. Bd3 {[%clk 0:02:53.3]}
5... Nf6 {[%clk 0:02:00.4]} 6. Qe2 {[%clk 0:02:48.9]} 6... Be7 {[%clk
0:01:59.1]} 7. O-O {[%clk 0:02:48.5]} 7... d5 {[%clk 0:01:57.3]} 8. e5 {[%clk
0:02:48.5]} 8... Nfd7 {[%clk 0:01:57.9]} 9. c3 {[%clk 0:02:47.8]} 9... c5 {[%clk
0:01:58.3]} 10. Re1 {[%clk 0:02:47.5]} 10... Nc6 {[%clk 0:01:57.7]} 11. Nf1
{[%clk 0:02:46.5]} 11... cxd4 {[%clk 0:01:39.5]} 12. cxd4 {[%clk 0:02:46.5]}
12... Qb6 {[%clk 0:01:38.3]} 13. Be3 {[%clk 0:02:46.1]} 13... O-O {[%clk
0:01:36.2]} 14. Ng3 {[%clk 0:02:42.4]} 14... Rfc8 {[%clk 0:01:36.7]} 15. Rad1
{[%clk 0:02:35]} 15... Nf8 {[%clk 0:01:35.4]} 16. h4 {[%clk 0:02:32.8]} 16... b4
{[%clk 0:01:35.2]} 17. h5 {[%clk 0:02:28.7]} 17... a5 {[%clk 0:01:33.2]} 18. Qd2
{[%clk 0:02:24.2]} 18... Ba6 {[%clk 0:01:31.6]} 19. Bb1 {[%clk 0:02:24.8]} 19...
Qd8 {[%clk 0:01:29.4]} 20. h6 {[%clk 0:02:20.1]} 20... g6 {[%clk 0:01:28.7]} 21.
Bg5 {[%clk 0:01:57.1]} 21... a4 {[%clk 0:01:28]} 22. Bxe7 {[%clk 0:01:54.2]}
22... Qxe7 {[%clk 0:01:28]} 23. Qf4 {[%clk 0:01:53.7]} 23... Rc7 {[%clk
0:01:27.5]} 24. Nh2 {[%clk 0:01:52]} 24... Rac8 {[%clk 0:01:27.9]} 25. Ng4
{[%clk 0:01:52]} 25... a3 {[%clk 0:01:26.9]} 26. Nf6+ {[%clk 0:01:49.4]} 26...
Kh8 {[%clk 0:01:25.8]} 27. b3 {[%clk 0:01:39.4]} 27... Nb8 {[%clk 0:01:16.5]}
28. Nf1 {[%clk 0:01:35.1]} 28... Nbd7 {[%clk 0:01:16.3]} 29. Nxd7 {[%clk
0:01:34.8]} 29... Nxd7 {[%clk 0:01:12.7]} 30. Ne3 {[%clk 0:01:35.3]} 30... Kg8
{[%clk 0:01:07.1]} 31. Ng4 {[%clk 0:01:33.8]} 31... Rc3 {[%clk 0:01:05.8]} 32.
g3 {[%clk 0:01:20.4]} 32... R8c7 {[%clk 0:01:03.8]} 33. Re3 {[%clk 0:01:16.1]}
33... Rxe3 {[%clk 0:01:02.3]} 34. Qxe3 {[%clk 0:01:16.1]} 34... Rc3 {[%clk
0:01:02.2]} 35. Qd2 {[%clk 0:01:11.5]} 35... Qd8 {[%clk 0:00:55.1]} 36. Re1
{[%clk 0:01:11.2]} 36... Bb5 {[%clk 0:00:45.1]} 37. Qf4 {[%clk 0:01:10]} 37...
Bd3 {[%clk 0:00:41.8]} 38. Bxd3 {[%clk 0:01:09.8]} 38... Rxd3 {[%clk 0:00:42.4]}
39. Rc1 {[%clk 0:01:06.6]} 39... Rc3 {[%clk 0:00:42.7]} 40. Rxc3 {[%clk
0:00:48.5]} 40... bxc3 {[%clk 0:00:40]} 41. Qc1 {[%clk 0:00:48.8]} 41... Qc8
{[%clk 0:00:37.2]} 42. Qc2 {[%clk 0:00:48.5]} 42... Nb8 {[%clk 0:00:28.2]} 43.
Ne3 {[%clk 0:00:37.5]} 43... Na6 {[%clk 0:00:22.9]} 44. Nd1 {[%clk 0:00:38]}
44... Nb4 {[%clk 0:00:23.5]} 45. Qxc3 {[%clk 0:00:38]} 45... Qf8 {[%clk
0:00:21.2]} 46. Qd2 {[%clk 0:00:35.7]} 46... f6 {[%clk 0:00:20.2]} 47. exf6
{[%clk 0:00:35.6]} 47... Kf7 {[%clk 0:00:20.1]} 48. Ne3 {[%clk 0:00:23.9]} 48...
Qd6 {[%clk 0:00:19.7]} 49. Ng4 {[%clk 0:00:23.4]} 49... Nc6 {[%clk 0:00:17.5]}
50. Qc3 {[%clk 0:00:23.2]} 50... Ke8 {[%clk 0:00:14.6]} 51. Kg2 {[%clk 0:00:20]}
51... Nd8 {[%clk 0:00:12.6]} 52. Ne5 {[%clk 0:00:19.9]} 52... Qb6 {[%clk
0:00:10.7]} 53. b4 {[%clk 0:00:18.3]} 53... Qb5 {[%clk 0:00:08.5]} 54. Qc7
{[%clk 0:00:16.7]} 1-0